Cogmind - Beta 15 @@@ ROGUE MODE // 2025.05.14 @ 20:51:35 Player: Darcyisverycute Result: Destroyed by Y-64 Sentinel with KE Penetrator Performance ------------- Evolutions (5) 2500 Regions Visited (12) 2400 Robots Destroyed (232) 1160 Value Destroyed (8684) 8684 Prototype IDs (23) 460 Alien Tech Used (0) 0 Bonus (2892) 2892 TOTAL SCORE: 18096 Bonus ------- High Alert Combat Kills 1081 Follower Combat Kills 390 Entered Garrisons 200 Used RIF Installer 500 Registered with UFD 300 Met Optimus in HQ 500 Friendly Fire -79 Cogmind --------- Core Integrity 0/1000 Matter 82/300 Energy 285/315 System Corruption 23% Temperature Cool (9) Movement Treading (160) Location -5/Factory Parts ------- > --- POWER (1) -------- Neutrino Core > --- PROPULSION (6) --- Heavy Treads Heavy Treads Flexi-carbon Leg Centrium Wheel > --- UTILITY (7) ------ High-capacity Storage Unit Improved Sensor Array Improved Signal Interpreter Improved Melee Analysis Suite Hacking Suite Relay Coupler [Grunt] (7) Relay Coupler [Sentry] (20) > --- WEAPON (3) ------- Companion Sword > --- INVENTORY (20) --- Biometal Leg Biometal Leg Centrium Wheel Improved Sensor Array Improved Transmission Jammer Graphene Brace Authchip [Processor] Relay Coupler [NC] (32) Relay Coupler [NC] (29) Relay Coupler [Hunter] (20) Heavy Linear Accelerator Long-range Missile Launcher Fusion Bomb Launcher Improved Remote Datajack CPS Tube (2) CPS Tube (2) CPS Tube (2) DRS Beacon (Ready) Peak State ------------ > --- POWER ------------ Neutrino Core > --- PROPULSION ------- Heavy Treads Heavy Treads Flexi-carbon Leg Centrium Wheel > --- UTILITY ---------- High-capacity Storage Unit Improved Sensor Array Improved Signal Interpreter Improved Melee Analysis Suite Hacking Suite Relay Coupler [NC] Relay Coupler [Grunt] > --- WEAPON ----------- Heavy Linear Accelerator Companion Sword > --- INVENTORY -------- Biometal Leg Biometal Leg Centrium Wheel Improved Sensor Array Improved Transmission Jammer Graphene Brace Authchip [Processor] Relay Coupler [NC] Relay Coupler [NC] Relay Coupler [Sentry] Relay Coupler [Hunter] Long-range Missile Launcher Fusion Bomb Launcher Improved Remote Datajack CPS Tube CPS Tube CPS Tube DRS Beacon [Rating: 90] Favorites ----------- Power Light Nuclear Core Engine Cooled Deuterium Engine Power Core Light Nuclear Core Propulsion Light Treads Treads Light Treads Leg Carbon-fiber Leg Wheel Armored Wheel Hover Unit Gravmag System Flight Unit Xenon Bombardment Thruster Utility High-capacity Storage Unit Device Graphene Brace Storage High-capacity Storage Unit Processor Advanced Targeting Computer Hackware Hacking Suite Protection Improved Light Armor Plating Weapon Autogun Energy Gun Precision Shock Rifle Energy Cannon Advanced Beam Cannon Ballistic Gun Autogun Ballistic Cannon Advanced Assault Cannon Launcher Proton Missile Launcher Special Weapon Remote Datajack Impact Weapon Shock Maul Slashing Weapon Companion Sword Piercing Weapon Heavy Pick Build | -11 -10 -10 -10 -9 -8 -7 -7 -7 -7 -5 -5 -5 ------- Run | Yrd Mat Min Exi Min Mat Fac Sto Rec Scr Fac Gar Fac Slots Evolved 10 | . . . . . 4 2 . . . 4 . . Power . | . . . . . . . . . . . . . Propulsion 4 | . . . . . 2 1 . . . 1 . . Utility 5 | . . . . . 1 1 . . . 3 . . Weapon 1 | . . . . . 1 . . . . . . . Parts Attached 186 | 7 5 2 . 3 31 28 31 4 5 14 31 25 Power 19 | 2 1 . . . 2 5 4 . . . 3 2 Engine 9 | 2 . . . . 2 . 2 . . . 3 . Core 10 | . 1 . . . . 5 2 . . . . 2 Reactor . | . . . . . . . . . . . . . Propulsion 72 | 2 1 . . . 12 10 12 1 2 5 17 10 Treads 30 | 2 1 . . . 8 5 7 1 . . 3 3 Leg 23 | . . . . . 2 1 . . . 5 13 2 Wheel 6 | . . . . . . . . . 1 . . 5 Hover 4 | . . . . . . 3 1 . . . . . Flight 9 | . . . . . 2 1 4 . 1 . 1 . Utility 53 | 1 2 . . . 7 6 5 2 2 8 10 10 Device 21 | . . . . . 2 3 4 . 1 2 5 4 Storage 5 | 1 1 . . . 1 . . . 1 . . 1 Processor 7 | . . . . . 1 1 . . . 3 . 2 Hackware 9 | . . . . . 1 1 . 1 . 2 1 3 Protection 11 | . 1 . . . 2 1 1 1 . 1 4 . Artifact . | . . . . . . . . . . . . . Weapon 42 | 2 1 2 . 3 10 7 10 1 1 1 1 3 Energy Gun 11 | 2 . . . . 4 . 5 . . . . . Energy Cannon 1 | . . . . . . . 1 . . . . . Ballistic Gun 13 | . 1 1 . 2 5 2 2 . . . . . Ballistic Cannon 2 | . . . . . . 1 . . . . . 1 Launcher 7 | . . . . 1 1 2 1 . . 1 . 1 Special Weapon 4 | . . 1 . . . . . 1 . . 1 1 Impact Weapon 3 | . . . . . . 2 1 . . . . . Slashing Weapon 1 | . . . . . . . . . 1 . . . Piercing Weapon . | . . . . . . . . . . . . . Special Melee Weapon . | . . . . . . . . . . . . . Unidentified Prototypes 17 | . . . . . 6 3 7 . 1 . . . Corrupted Parts 3 | . . . . . . . 1 . . . 2 . System Corruption 23 | . . . . . . . 2 . . . 21 . Parts Lost 49 | . . . . . 9 2 5 2 . 3 25 3 Power 4 | . . . . . . 1 . . . . 3 . Propulsion 22 | . . . . . 1 1 5 . . 2 13 . Utility 16 | . . . . . 3 . . 1 . 1 8 3 Weapon 7 | . . . . . 5 . . 1 . . 1 . Highest Loss Streak 8 | . . . . . 6 1 3 1 . 2 8 3 To Critical Strikes . | . . . . . . . . . . . . . Average Backups 16 | 2 11 13 13 11 14 18 18 18 17 17 15 17 Power . | . 1 . . . . . . 1 . . 1 . Propulsion 2 | 1 3 1 1 1 1 3 4 3 3 2 . 1 Utility 8 | . 2 5 6 6 6 10 9 9 10 6 6 8 Weapon 4 | . 4 6 6 4 6 4 2 3 3 4 3 3 Tool/Special . | . . . . . . . . . . . . . Unused Backups 44 | . 2 4 . . 5 14 1 . 1 . 6 11 Power 2 | . . . . . . . . . . . 2 . Propulsion 7 | . 1 2 . . 1 3 . . . . . . Utility 22 | . 1 1 . . 2 6 1 . 1 . 3 7 Weapon 8 | . . . . . 2 4 . . . . 1 1 Tool/Special 5 | . . 1 . . . 1 . . . . . 3 Average Slot Usage (%) 90 | . 94 100 74 98 94 99 97 99 88 82 73 83 Engine 3 | . 12 . . . 4 1 . . 6 5 4 . Core 4 | . 1 14 14 14 3 5 6 7 . . . 3 Treads 18 | . 28 28 28 28 30 24 23 23 10 . 3 4 Leg 5 | . . . . . 2 2 . . . 3 21 15 Wheel 1 | . . . . . . . . . 4 . . 10 Hover 1 | . . . . . . 5 . . . . . . Flight 7 | . . . . . . 4 10 15 21 31 . . Device 4 | . . . . . . 6 4 3 2 7 10 4 Storage 8 | . 22 14 14 14 9 7 7 7 7 5 5 5 Processor 7 | . . . . . 3 14 13 7 7 7 5 6 Hackware 4 | . . . . . . . . 6 7 9 8 14 Protection 4 | . . 14 14 14 11 . 3 4 3 2 2 5 Energy Gun 3 | . 19 14 1 . 1 . 9 15 . . . . Ballistic Gun 7 | . 8 10 1 26 24 17 5 . . . . . Special Weapon 1 | . . 3 . . . . . . 4 . . 1 Impact Weapon 1 | . . . . . . 3 2 3 4 . . . Slashing Weapon 1 | . . . . . . . . . 2 5 5 5 Peak Build Rating 90 | 6 12 13 13 13 36 51 55 56 59 72 77 90 Average Rating 43 | 4 8 12 10 12 26 45 47 53 48 63 58 75 On Entrance 33 | . 6 12 13 10 13 35 49 51 49 59 56 77 Naked Turns . | . . . . . . . . . . . . . Heaviest Build 73 | 13 35 33 33 34 58 63 70 66 64 71 70 73 Greatest Support 140 | 40 40 40 40 40 82 88 80 76 76 66 129 140 Greatest Overweight (x) 16 | . . . . . 1 1 2 . 5 5 16 4 Average Overweight (x) . | . . . . . . . . . 2 1 . . Largest Inventory Capacity 20 | 8 15 15 15 15 20 20 20 20 20 20 20 20 Average Capacity 18 | 7 14 15 15 15 17 20 20 20 20 20 20 20 Most Carried 20 | 6 15 15 15 14 20 20 20 20 20 20 20 20 Average Carried 18 | 2 11 14 15 13 16 19 19 19 19 19 18 19 Final Capacity 20 | 8 15 15 15 15 20 20 20 20 20 20 20 20 Final Carried 20 | 4 15 15 15 14 20 20 20 20 20 20 20 19 Class Distribution -------------------- 45% | Mutant 21% | Scavenger-Mutant 7% | Scavenger-Gunner 7% | Gunner 3% | Skirmisher 3% | Bothacker-Mutant 3% | Tank Dominant Class ---------------- Mutant | -10/Materials Mutant | -10/Mines Mutant | -10/Exiles Mutant | -9/Mines Tank | -8/Materials Mutant | -7/Factory Scavenger-Gunner | -7/Storage Mutant | -7/Recycling Mutant | -7/Scraptown Hacker-Mutant | -5/Factory Scavenger-Mutant | -5/Garrison Bothacker-Mutant | -5/Factory Resources | -11 -10 -10 -10 -9 -8 -7 -7 -7 -7 -5 -5 -5 ----------- Run | Yrd Mat Min Exi Min Mat Fac Sto Rec Scr Fac Gar Fac Matter Collected 6732 | 270 174 138 . 6 1627 1781 1178 131 250 229 652 296 Remotely . | . . . . . . . . . . . . . Salvage Created 9133 | 88 518 129 . 14 1923 1696 2439 248 . 310 1370 398 Parts 487 | . 27 13 . 6 110 100 120 16 . 8 67 20 Haulers Intercepted 10 | . . . . . 3 2 5 . . . . . Recyclers Shooed 4 | . . . . . 1 1 2 . . . . . Parts Field Recycled . | . . . . . . . . . . . . . Retrieved Matter . | . . . . . . . . . . . . . Parts Self-Destructed . | . . . . . . . . . . . . . Prevented . | . . . . . . . . . . . . . Kills | -11 -10 -10 -10 -9 -8 -7 -7 -7 -7 -5 -5 -5 ------- Run | Yrd Mat Min Exi Min Mat Fac Sto Rec Scr Fac Gar Fac Combat Hostiles Destroyed 170 | . 10 5 . 3 35 32 32 2 . 5 38 8 Melee 33 | . . . . . . . 1 . . 5 22 5 Guns 83 | . 9 5 . . 30 24 13 2 . . . . Cannons 11 | . . . . . . 5 6 . . . . . AOE 39 | . . . . 3 5 3 10 . . . 15 3 Classes Destroyed 18 | 1 4 3 . . 7 1 2 . . . . . Worker 11 | . 1 . . . . 3 7 . . . . . Builder 7 | . . 1 . . . . 4 1 . . . 1 Tunneler 3 | . . 2 . . 1 . . . . . . . Hauler 10 | . . . . . 3 2 5 . . . . . Recycler 14 | 1 1 . . . 4 4 2 1 . . . 1 Mechanic 4 | . . . . . 1 . 3 . . . . . Operator 3 | . 1 . . . 1 1 . . . . . . Watcher 9 | . 1 . . . 2 4 2 . . . . . Swarmer 68 | . . 5 . 3 10 17 4 . . . 24 5 Grunt 67 | . 10 . . . 16 6 18 . . 5 11 1 Brawler 4 | . . . . . . . 4 . . . . . Duelist 1 | . . . . . . . 1 . . . . . Sentry 15 | . . . . . 5 2 3 2 . . 3 . Specialist 2 | . . . . . 2 . . . . . . . Hunter 2 | . . . . . 1 1 . . . . . . Programmer 9 | . . . . . . 5 2 . . . . 2 Heavy 2 | . . . . . 1 1 . . . . . . Zionite 1 | . . . . . 1 . . . . . . . Best Kill Streak 15 | 1 4 2 . 3 6 6 10 1 . 2 15 3 Combat Bots Only 15 | . 4 2 . 3 5 5 10 1 . 2 15 3 Max Kills in Single Turn 9 | 1 1 1 . 2 3 2 9 1 . 1 4 2 Gunslinging . | . . . . . . . . . . . . . Exploded 7 | . . . . 2 2 2 7 . . . 4 2 Melee 1 | . . . . . . . 1 . . 1 1 1 Uniques/NPCs Destroyed . | . . . . . . . . . . . . . Combat | -11 -10 -10 -10 -9 -8 -7 -7 -7 -7 -5 -5 -5 -------- Run | Yrd Mat Min Exi Min Mat Fac Sto Rec Scr Fac Gar Fac Hostile Shots Fired 1121 | . 54 20 . 5 186 177 199 27 . 74 284 95 Missed 300 | . 12 6 . 1 53 56 56 13 . 16 67 20 Hits 821 | . 42 14 . 4 133 121 143 14 . 58 217 75 Melee 5 | . . . . . . . 5 . . . . . Projectile 816 | . 42 14 . 4 133 121 138 14 . 58 217 75 AOE 2 | . . . . . . . 1 . . . . 1 Critical Strikes 28 | . . . . . 7 5 1 . . 1 10 4 Actively Blocked 10 | . . . . . . . . . . . 10 . Part Disruptions 1 | . . . . . . . . . . . . 1 Damage Taken 13130 | . 497 122 . 70 2328 1824 1814 230 . 1160 3788 1297 Core 2032 | . 109 22 . 19 325 308 231 5 . 258 596 159 Absorbed by Shields 477 | . . . . . . . . . . . 477 . Regen/Repaired (Parts) 10 | . . . . . . . . . . . 10 . Core Remaining (%) 50 | 100 . . . 40 40 . . . 22 . . . Volleys Fired 413 | 2 49 22 . 5 122 89 82 7 . . 23 12 Largest 3 | 2 2 2 . 2 3 3 3 3 . . 1 1 Hottest 165 | 90 90 100 . 46 111 93 165 165 . . 60 52 Shots Fired 991 | 4 98 36 . 7 341 251 200 20 . . 22 12 Gun 885 | 4 98 32 . 4 335 226 158 20 . . 8 . Cannon 39 | . . . . . . 20 19 . . . . . Launcher 52 | . . . . 3 6 5 23 . . . 13 2 Special 15 | . . 4 . . . . . . . . 1 10 Kinetic 731 | . 37 18 . 4 325 246 101 . . . . . Thermal 120 | 4 61 18 . . 10 . 19 . . . 8 . Explosive 20 | . . . . 3 6 . . . . . 9 2 Electromagnetic 109 | . . . . . . 5 80 20 . . 4 . Robot Hit Streak 29 | 3 6 5 . . 12 13 29 13 . . 3 13 Robot Miss Streak 5 | . 5 3 . 4 4 3 4 2 . . . . Penetration Max . | . . . . . . . . . . . . . Secondary Targets 5 | . 1 . . . 2 2 . . . . . . Max Gunslinging Chain 1 | . 1 . . . 1 1 . . . . . . Shots Hit Robots 764 | 3 55 19 . . 227 165 151 15 . 25 75 29 Core Hits 384 | 2 23 8 . 3 105 75 92 8 . 9 52 7 Critical Kills 5 | . 2 . . . 2 1 . . . . . . Critical Parts Destroyed 3 | . . . . . 1 . 2 . . . . . Critical Strikes 15 | . 3 2 . . 3 2 5 . . . . . Burn 4 | . 1 2 . . . . 1 . . . . . Destroy 7 | . 2 . . . 3 1 1 . . . . . Blast 3 | . . . . . . 1 2 . . . . . Smash 1 | . . . . . . . 1 . . . . . Melee Attacks 241 | . . . . . . 45 10 . . 33 114 39 Impact 55 | . . . . . . 45 10 . . . . . Slashing 186 | . . . . . . . . . . 33 114 39 Piercing . | . . . . . . . . . . . . . Sneak Attacks 17 | . . . . . . 4 4 . . 2 1 6 Combat Hostiles 6 | . . . . . . . 1 . . 1 1 3 Follow-up Attacks 3 | . . . . . . . . . . 1 2 . Damage Inflicted 20678 | 38 771 257 . 158 3636 3654 4995 275 . 1110 4468 1316 Guns 9252 | 38 771 257 . . 2974 2642 2321 249 . . . . Cannons 815 | . . . . . . 386 429 . . . . . Explosions 4419 | . . . . 158 662 134 1718 26 . . 1355 366 Melee 6192 | . . . . . . 492 527 . . 1110 3113 950 Ramming . | . . . . . . . . . . . . . Kinetic 8198 | . 317 131 . . 2920 3028 1802 . . . . . Thermal 1260 | 38 454 126 . . 54 . 588 . . . . . Explosive 2790 | . . . . 158 662 . 380 26 . . 1198 366 Electromagnetic 2238 | . . . . . . 134 1698 249 . . 157 . Impact 1019 | . . . . . . 492 527 . . . . . Slashing 5173 | . . . . . . . . . . 1110 3113 950 Piercing . | . . . . . . . . . . . . . Highest Corruption 23 | . . 1 1 1 . 7 10 10 10 . 21 23 Average Corruption 10 | . . 1 1 1 . 5 7 10 10 . 18 21 Corruption Purged . | . . . . . . . . . . . . . Corruption Blocked . | . . . . . . . . . . . . . Effects 386 | . . 2 4 1 . 61 54 31 102 . 87 44 Message Errors 102 | . . . 2 1 . 15 17 9 27 . 23 8 Matter Fused 92 | . . 2 2 . . 12 11 10 24 . 21 10 Heat Flow Errors 46 | . . . . . . 6 6 1 15 . 11 7 Energy Discharges 47 | . . . . . . 6 4 5 12 . 14 6 Parts Rejected 8 | . . . . . . 2 3 . . . 2 1 Parts Fused 7 | . . . . . . 1 . 2 3 . 1 . Data Loss (minor) 46 | . . . . . . 10 7 . 14 . 6 9 Data Loss (major) 20 | . . . . . . 4 1 2 7 . 4 2 Misfires 5 | . . . . . . 2 2 1 . . . . Alerts 8 | . . . . . . 3 . 1 . . 3 1 Misdirections 1 | . . . . . . . . . . . 1 . Weapon Failures 4 | . . . . . . . 3 . . . 1 . Overload Shots 5 | . . . . . . . . . . . 5 . Overflow Damage 1121 | . . . . 4 26 245 331 . . 110 209 196 Projectiles 1 | . . . . . . . 1 . . . . . Explosions 210 | . . . . 4 26 . 26 . . . 106 48 Melee 910 | . . . . . . 245 304 . . 110 103 148 Knockbacks 11 | . . . . . . 7 4 . . . . . Impact 3 | . . . . . . 2 1 . . . . . Kinetic 8 | . . . . . . 5 3 . . . . . Secondary . | . . . . . . . . . . . . . Self-Inflicted Damage 212 | . . . . 38 . . 24 114 . . 36 . Shots 7 | . . . . 1 . . 2 2 . . 2 . Rammed . | . . . . . . . . . . . . . Targets Rammed . | . . . . . . . . . . . . . Kicked . | . . . . . . . . . . . . . Crushed . | . . . . . . . . . . . . . Highest Temperature 344 | 60 344 138 . 32 304 244 332 282 255 4 268 247 Average Temperature 86 | 31 94 46 . 16 79 65 116 104 93 3 104 95 Received Heat Transfer 3416 | . 276 . . . 819 168 606 42 . 540 893 72 Effects 5 | . . . . . 1 . 4 . . . . . Energy Bleed 1 | . . . . . . . 1 . . . . . Interference 4 | . . . . . 1 . 3 . . . . . Siege Activations . | . . . . . . . . . . . . . Martial Activations . | . . . . . . . . . . . . . Shielding Activations . | . . . . . . . . . . . . . Robots Disrupted 2 | . . . . . . . . . . . 1 1 Combat Hostiles 2 | . . . . . . . . . . . 1 1 Robots Corrupted 5 | . . . . . . 1 3 . . . 1 . Combat Hostiles 3 | . . . . . . . 2 . . . 1 . Parts Fried 19 | . . . . . . 5 13 1 . . . . Impact Corruptions 15 | . . . . . . 7 8 . . . . . Robots Melted 1 | . 1 . . . . . . . . . . . Combat Hostiles 1 | . 1 . . . . . . . . . . . Parts Melted 5 | . 3 . . . . . 2 . . . . . Heat Transferred 3167 | 99 1347 518 . . 111 . 1092 . . . . . Parts Sabotaged . | . . . . . . . . . . . . . Parts Stolen . | . . . . . . . . . . . . . Parts Stripped . | . . . . . . . . . . . . . Power Chain Reactions 7 | . . . . . . . 7 . . . . . Alert | -11 -10 -10 -10 -9 -8 -7 -7 -7 -7 -5 -5 -5 ------- Run | Yrd Mat Min Exi Min Mat Fac Sto Rec Scr Fac Gar Fac Maximum Alert Level 5 | . . . . . 2 2 3 1 . . 5 4 Low Security (%) 35 | 100 100 100 . 100 31 53 . . . 100 7 . Level 1 25 | . . . . . 51 21 41 100 . . 10 . Level 2 15 | . . . . . 16 25 41 . . . 10 . Level 3 17 | . . . . . . . 17 . . . 40 99 Level 4 3 | . . . . . . . . . . . 16 . Level 5 2 | . . . . . . . . . . . 14 . High Security . | . . . . . . . . . . . . . Max Security . | . . . . . . . . . . . . . Peak Influence 2010 | 5 166 80 . 103 514 664 917 384 . 71 2010 1090 Initial 1054 | . . 55 . . 4 217 301 351 . . 42 1054 Average 442 | . 59 20 . 56 242 282 496 320 . 21 974 916 Influence Increases 7436 | 5 353 189 . 103 1159 1168 1253 341 . 181 2238 446 Destroy 0b10 Robot/C 3600 | . 200 100 . 60 720 640 640 40 . 100 860 240 Destroy 0b10 Robot/NC 320 | 5 20 15 . . 60 70 115 10 . . 5 20 Destroy Leader 608 | . 42 20 . 10 160 162 134 . . 10 20 50 Allied During Kill 98 | . . . . . 19 . . . . . 36 43 Trap Triggered on 0b10 60 | . . . . . . . . . . . 60 . Successful Hack 118 | . . 5 . . 16 60 . 10 . 22 5 . Select Force Hacks 300 | . 30 . . . . 60 . 210 . . . . Disable Machine 330 | . 15 . . 15 30 15 90 60 . . 75 30 Anti-Garrison Action 1050 | . . . . . . . 150 . . . 900 . Destroy Structure 382 | . 1 4 . 18 34 41 34 11 . 4 187 48 Partial Spotted 45 | . . . . . . 30 . . . . 15 . Lose Combat Pursuer 525 | . 45 45 . . 120 90 90 . . 45 75 15 Influence Decreases 6616 | 5 211 270 61 90 694 983 1016 943 298 120 289 1636 Entered New Map 2602 | . . 87 61 . 9 261 362 549 298 . 19 956 Time Decay 3154 | 5 211 183 . 90 575 702 534 374 . 100 . 380 Lost Part 480 | . . . . . 90 20 50 20 . 20 250 30 Lost Ally 230 | . . . . . 20 . 70 . . . 20 120 Purge Threat 150 | . . . . . . . . . . . . 150 Squads Dispatched 40 | . 3 . . . 4 13 9 . . 5 . 6 Investigation 9 | . 1 . . . 1 3 . . . 3 . 1 Extermination 9 | . . . . . . 5 2 . . 1 . 1 Reinforcement 16 | . 2 . . . 3 5 3 . . . . 3 Assault 5 | . . . . . . . 4 . . . . 1 Garrison 1 | . . . . . . . . . . 1 . . Intercept . | . . . . . . . . . . . . . Searches Triggered . | . . . . . . . . . . . . . Construction Impeded . | . . . . . . . . . . . . . Haulers Reinforced 1 | . . . . . . . 1 . . . . . Active Scanning Responses . | . . . . . . . . . . . . . Cargo Convoy Interrupts 1 | . . . . . . 1 . . . . . . Stealth | -11 -10 -10 -10 -9 -8 -7 -7 -7 -7 -5 -5 -5 --------- Run | Yrd Mat Min Exi Min Mat Fac Sto Rec Scr Fac Gar Fac Distress Signals 6 | . 1 1 . . 2 1 1 . . . . . Communications Jammed . | . . . . . . . . . . . . . Distress Signals . | . . . . . . . . . . . . . Times Spotted 266 | . 21 8 . 3 55 50 52 2 . 14 44 17 Peak Tracking Total 13 | . 4 3 . 3 6 5 9 1 . 7 13 7 Tactical Retreats 26 | . 3 3 . . 4 5 5 . . 2 3 1 Traps | -11 -10 -10 -10 -9 -8 -7 -7 -7 -7 -5 -5 -5 ------- Run | Yrd Mat Min Exi Min Mat Fac Sto Rec Scr Fac Gar Fac Traps Triggered 18 | . . . . . 1 2 1 . . 3 9 2 Indirectly 1 | . . . . . . . . . . . 1 . Trap Hack Attempts . | . . . . . . . . . . . . . Triggered . | . . . . . . . . . . . . . Disarmed . | . . . . . . . . . . . . . Reprogrammed . | . . . . . . . . . . . . . Reused 6 | . . . . . . . . . . . 6 . Traps Extracted . | . . . . . . . . . . . . . Installed 12 | . . . . . . . . . . . 12 . Triggered 6 | . . . . . . . . . . . 6 . Most Traps Carried 7 | . . 1 1 1 1 . . . . . 7 . Machines | -11 -10 -10 -10 -9 -8 -7 -7 -7 -7 -5 -5 -5 ---------- Run | Yrd Mat Min Exi Min Mat Fac Sto Rec Scr Fac Gar Fac Machines Disabled 30 | . 1 . . 1 2 1 7 4 . . 12 2 Max in Single Turn 2 | . 1 . . 1 1 1 1 2 . . 1 1 Garrison Access 3 | . . . . . 1 1 1 . . . . . Garrison Relay 5 | . . . . . . . . . . . 5 . Phase Generator 1 | . . . . . . . . . . . 1 . Machines Repaired . | . . . . . . . . . . . . . Machines Dismantled . | . . . . . . . . . . . . . Machines Sabotaged . | . . . . . . . . . . . . . Overloaded Fab Kills . | . . . . . . . . . . . . . Hacking | -11 -10 -10 -10 -9 -8 -7 -7 -7 -7 -5 -5 -5 --------- Run | Yrd Mat Min Exi Min Mat Fac Sto Rec Scr Fac Gar Fac Machines Accessed 49 | . 3 2 2 . 6 9 2 12 4 4 2 3 Terminals 23 | . 2 1 . . 5 3 2 5 . 1 2 2 Fabricators 1 | . . . . . . 1 . . . . . . Repair Stations . | . . . . . . . . . . . . . Recycling Units 13 | . 1 . . . . 2 . 7 . 2 . 1 Scanalyzers 2 | . . . . . . 2 . . . . . . Garrison Access 3 | . . . . . 1 1 . . . 1 . . Total Hacks 97 | . 7 2 4 . 19 17 5 20 6 6 4 7 Successful 43 | . 1 2 4 . 6 7 2 9 6 4 1 1 Failed 54 | . 6 . . . 13 10 3 11 . 2 3 6 Catastrophic 12 | . 1 . . . 3 1 . 5 . 1 . 1 Database Lockouts . | . . . . . . . . . . . . . Manual 46 | . 7 . . . 8 5 1 20 . 3 . 2 Terminals 58 | . 5 1 . . 17 6 5 13 . 2 4 5 Fabricators 1 | . . . . . . 1 . . . . . . Repair Stations . | . . . . . . . . . . . . . Recycling Units 16 | . 2 . . . . 3 . 7 . 2 . 2 Scanalyzers 5 | . . . . . . 5 . . . . . . Garrison Access 6 | . . . . . 2 2 . . . 2 . . Terminal Hacks 22 | . . 2 4 . 4 . 2 1 6 1 1 1 Record 9 | . . . 4 . 1 . . . 4 . . . Robot Analysis 1 | . . . . . . . . 1 . . . . Open Door 5 | . . 1 . . . . 2 . 1 . 1 . Level Access Points 1 | . . . . . . . . . . 1 . . Branch Access Points 1 | . . . . . 1 . . . . . . . Unreport Threat 1 | . . . . . . . . . . . . 1 Recall Investigation 1 | . . . . . 1 . . . . . . . Zone Layout 2 | . . 1 . . 1 . . . . . . . Proto ID Catalog 1 | . . . . . . . . . 1 . . . Fabricator Hacks 1 | . . . . . . 1 . . . . . . Network Status 1 | . . . . . . 1 . . . . . . Repair Station Hacks . | . . . . . . . . . . . . . Recycling Unit Hacks . | . . . . . . . . . . . . . Scanalyzer 2 | . . . . . . 2 . . . . . . Insert Component 1 | . . . . . . 1 . . . . . . Analyze 1 | . . . . . . 1 . . . . . . Garrison Access Hacks 3 | . . . . . 1 1 . . . 1 . . Unlock Access 1 | . . . . . . . . . . 1 . . Seal Access 2 | . . . . . 1 1 . . . . . . Unauthorized Hacks 15 | . 1 . . . 1 3 . 8 . 2 . . Terminals 2 | . . . . . 1 . . 1 . . . . Botnet 2 | . . . . . 1 . . 1 . . . . Fabricators . | . . . . . . . . . . . . . Repair Stations . | . . . . . . . . . . . . . Recycling Units 13 | . 1 . . . . 3 . 7 . 2 . . Recyclers 1 | . . . . . . 1 . . . . . . Tunnel 10 | . 1 . . . . 2 . 7 . . . . Fedlink 2 | . . . . . . . . . . 2 . . Scanalyzers . | . . . . . . . . . . . . . Garrison Access . | . . . . . . . . . . . . . Data Cores Recovered . | . . . . . . . . . . . . . Used . | . . . . . . . . . . . . . Hacking Detections 24 | . 2 . . . 4 5 1 5 . 2 2 3 Full Trace Events 7 | . . . . . 1 1 . 4 . . . 1 Feedback Events . | . . . . . . . . . . . . . Feedback Blocked . | . . . . . . . . . . . . . Robot Schematics Acquired . | . . . . . . . . . . . . . Robots Built . | . . . . . . . . . . . . . Authchips . | . . . . . . . . . . . . . Time . | . . . . . . . . . . . . . Total Robot Build Rating . | . . . . . . . . . . . . . Part Schematics Acquired 1 | . . . . . . 1 . . . . . . Parts Built . | . . . . . . . . . . . . . Authchips . | . . . . . . . . . . . . . Time . | . . . . . . . . . . . . . Total Part Build Rating . | . . . . . . . . . . . . . Parts Repaired . | . . . . . . . . . . . . . Time . | . . . . . . . . . . . . . Parts Recycled . | . . . . . . . . . . . . . Recycled Matter . | . . . . . . . . . . . . . Retrieved Matter . | . . . . . . . . . . . . . Retrieved Components . | . . . . . . . . . . . . . Parts Scanalyzed 1 | . . . . . . 1 . . . . . . Part Schematics Acquired 1 | . . . . . . 1 . . . . . . Parts Damaged . | . . . . . . . . . . . . . Bothacking | -11 -10 -10 -10 -9 -8 -7 -7 -7 -7 -5 -5 -5 ------------ Run | Yrd Mat Min Exi Min Mat Fac Sto Rec Scr Fac Gar Fac Used RIF Installer 1 | . . . . . . . . . . . 1 . Robots Hacked 8 | . . . . . . . . . . . . 8 Non-combat 3 | . . . . . . . . . . . . 3 Combat 5 | . . . . . . . . . . . . 5 Robot Hacks Applied 10 | . . . . . . . . . . . . 10 parse_system 1 | . . . . . . . . . . . . 1 generate_echo 1 | . . . . . . . . . . . . 1 start_evac 1 | . . . . . . . . . . . . 1 drop_inventory 1 | . . . . . . . . . . . . 1 locate_stockpiles 1 | . . . . . . . . . . . . 1 find_recycling 1 | . . . . . . . . . . . . 1 reboot_system 2 | . . . . . . . . . . . . 2 overwrite_iff 1 | . . . . . . . . . . . . 1 formatsys_high 1 | . . . . . . . . . . . . 1 Relay Couplers Released 22 | . . . . . . . 1 . . . 21 . Machine Destruction 22 | . . . . . . . 1 . . . 21 . Attached 3 | . . . . . . . . . . . . 3 Fabnet Peak Effective % . | . . . . . . . . . . . . . Robots Rewired 3 | . . . . . . . . . . . 3 . Allies Hacked 1 | . . . . . . . . . . . . 1 Hacks Repelled . | . . . . . . . . . . . . . Allies | -11 -10 -10 -10 -9 -8 -7 -7 -7 -7 -5 -5 -5 -------- Run | Yrd Mat Min Exi Min Mat Fac Sto Rec Scr Fac Gar Fac Total Allies 11 | . . . . 2 . . 2 . . . 5 2 Largest Group 4 | . . . . 2 2 . 2 . . . 4 4 Highest-Rated Group 195 | . . . . 47 47 . 62 . . . 195 195 Highest-Rated Ally 51 | . . . . 31 31 . 31 . . . 51 51 Total Orders 6 | . . . . . . . 6 . . . . . EXPLORE 6 | . . . . . . . 6 . . . . . Ally Attacks 79 | . . . . . 20 . 9 . . . 22 28 Total Damage 1692 | . . . . . 280 . 168 . . . 705 539 Kills 12 | . . . . . 1 . . . . . 5 6 Allies Corrupted 1 | . . . . . . . . . . . . 1 Allies Melted 1 | . . . . . . . . . . . 1 . Intel | -11 -10 -10 -10 -9 -8 -7 -7 -7 -7 -5 -5 -5 ------- Run | Yrd Mat Min Exi Min Mat Fac Sto Rec Scr Fac Gar Fac Active Infowar (turns) 3752 | . . . . . . 2619 312 . . 160 . 661 Sensors 2817 | . . . . . . 2270 312 . . . . 235 Terrain 541 | . . . . . . . . . . 160 . 381 Jamming 392 | . . . . . . 330 . . . . . 62 ECM 19 | . . . . . . 19 . . . . . . Robot Analysis Total 1 | . . . . . . . . 1 . . . . Derelict Logs Recovered 1 | . . 1 . . . . . . . . . . Drone Launches 9 | . . . . . . . 9 . . . . . Drone Recoveries 5 | . . . . . . . 5 . . . . . Exploration | -11 -10 -10 -10 -9 -8 -7 -7 -7 -7 -5 -5 -5 ------------- Run | Yrd Mat Min Exi Min Mat Fac Sto Rec Scr Fac Gar Fac Turns Passed 16372 | 91 636 910 603 199 1825 3033 1513 860 2744 458 2603 897 Spaces Moved 8556 | 46 264 407 377 115 799 1500 561 514 1778 239 1372 584 Core 6 | 2 . . . . . . . . . . 4 . Treads 5319 | 44 264 407 377 115 799 1500 547 514 530 . 149 73 Legs 1551 | . . . . . . . . . . 18 1219 314 Wheels 1445 | . . . . . . . . . 1248 . . 197 Hover . | . . . . . . . . . . . . . Flight 235 | . . . . . . . 14 . . 221 . . Fastest Speed 50 | 50 160 160 160 160 157 160 160 160 150 99 102 92 Average Speed 158 | 155 160 160 160 160 167 165 203 160 152 129 151 117 Slowest Speed 850 | 160 160 160 160 160 250 245 250 160 165 540 850 170 Overloaded Moves . | . . . . . . . . . . . . . Propulsion Burnouts . | . . . . . . . . . . . . . Robots Hopped . | . . . . . . . . . . . . . Potential Cave-ins . | . . . . . . . . . . . . . Cave-ins Triggered . | . . . . . . . . . . . . . Exploration Rate (%) 56 | 5 42 85 69 26 86 53 74 93 89 8 91 14 Regions Visited 12 Branch Regions 6 Pre-discovered Areas 13 | . 1 . 1 . . 2 . 7 1 1 . . Known Exits Taken 2 | . . . . . . 1 . . . 1 . . Unknown Exits Taken 9 | 1 1 1 1 1 1 . 1 1 1 . . . Scrap Searched 5 | . . . . . . . . . 5 . . . Spaces Dug 78 | . . 4 . 7 . 37 . . . 2 19 9 Terrain Destroyed 289 | . . 4 . 18 41 39 26 11 . 2 125 23 Melee 56 | . . . . . . 37 . . . 2 8 9 Projectile 9 | . . 4 . . 1 2 1 . . . 1 . AOE 224 | . . . . 18 40 . 25 11 . . 116 14 Terrain Rammed . | . . . . . . . . . . . . . Walls Destroyed . | . . . . . . . . . . . . . Machines Disabled . | . . . . . . . . . . . . . Actions | -11 -10 -10 -10 -9 -8 -7 -7 -7 -7 -5 -5 -5 --------- Run | Yrd Mat Min Exi Min Mat Fac Sto Rec Scr Fac Gar Fac Total 10364 | 59 389 627 378 123 1085 1829 749 535 1805 337 1713 735 Wait 445 | . 49 188 . . 65 66 10 . . 13 34 20 Move 8543 | 45 263 406 376 114 798 1499 560 513 1777 238 1370 584 Hop . | . . . . . . . . . . . . . Pick Up 144 | 5 15 4 . 1 25 26 6 2 7 3 40 10 Fast Attach 115 | 4 2 . . . 13 17 21 1 5 6 26 20 Attach 55 | 2 1 . . 2 14 . 4 1 2 4 17 8 Detach 47 | . 1 . . . 9 2 2 1 3 7 11 11 Swap 123 | 1 3 2 . 1 17 46 26 7 2 10 1 7 Drop 180 | . 6 5 2 . 22 39 28 3 9 6 36 24 Fire 413 | 2 49 22 . 5 122 89 82 7 . . 23 12 Melee 238 | . . . . . . 45 10 . . 32 112 39 Ram . | . . . . . . . . . . . . . Kick . | . . . . . . . . . . . . . Crush . | . . . . . . . . . . . . . Escape Stasis 38 | . . . . . . . . . . 18 20 . Rewire 11 | . . . . . . . . . . . 11 . Trap 12 | . . . . . . . . . . . 12 . Miscellaneous . | . . . . . . . . . . . . . Route ------- -11/Scrapyard -10/Materials -10/Mines (discovered 3 exits: [*Mat x2] / *Exi) -10/Exiles -9/Mines -8/Materials (discovered 2 exits: *Fac x2) -7/Factory (discovered 2 exits: *Fac / *Sto) -7/Storage (discovered 2 exits: *Fac / *Rec) -7/Recycling (discovered 2 exits: *Fac / *Scr) -7/Scraptown (discovered 2 exits: *Fac x2) -5/Factory (discovered 5 exits: Fac x4 / Gar) -5/Garrison (discovered 3 exits: *Fac x3) -5/Factory History --------- Turn | Location | Event 6 | -11/Scrapyard | Discovered new exit (range 15) 92 | -11/Scrapyard | Entered Materials 302 | -10/Materials | Build established: Mutant 632 | -10/Materials | Discovered new exit (range 16) 728 | -10/Materials | Entered Mines 779 | -10/Mines | Discovered new exit (range 7) 849 | -10/Mines | Met a Derelict bent on vengeance 858 | -10/Mines | Found a hidden stash of uninstalled traps 916 | -10/Mines | Core integrity fell below 50% 932 | -10/Mines | Found a Scrap Suit stashed away for nefarious purposes 936 | -10/Mines | Found Scrap Suit 1029 | -10/Mines | Learned Materials emergency access door positions 1099 | -10/Mines | Met a Derelict who couldn't figure out how to use a Trap Extractor 1174 | -10/Mines | Assembled infested the area 1498 | -10/Mines | Discovered new exit (range 4) 1632 | -10/Mines | Discovered new exit (range 5) 1638 | -10/Mines | Entered Exiles 1677 | -10/Exiles | Met 8R-AWN 1706 | -10/Exiles | Met EX-HEX 1753 | -10/Exiles | Met EX-BIN 1799 | -10/Exiles | Met EX-DEC 1809 | -10/Exiles | Learned location of Zion (-7) 2215 | -10/Exiles | Discovered new exit (range 14) 2241 | -10/Exiles | Entered Mines 2398 | -9/Mines | Discovered new exit (range 10) 2440 | -9/Mines | Entered Materials 2440 | -8/Materials | Accompanied by 2 allies 2440 | -8/Materials | Evolved 4 slots: Propulsion x2, Utility x1, Weapon x1 2445 | -8/Materials | Led the pair of lost Derelicts to an unsafe place 3238 | -8/Materials | Build established: Scavenger-Tank 3466 | -8/Materials | Discovered new exit (range 4) 3545 | -8/Materials | Build established: Tank 3909 | -8/Materials | Build established: Gunner 4016 | -8/Materials | Core integrity fell below 50% 4057 | -8/Materials | Lost 6 parts (1n2u3w) 4090 | -8/Materials | Discovered new exit (range 3) 4265 | -8/Materials | Entered Factory 4265 | -7/Factory | Evolved 2 slots: Propulsion x1, Utility x1 4285 | -7/Factory | Build established: Scavenger-Gunner 5167 | -7/Factory | Cargo convoy interrupted 5224 | -7/Factory | Build established: Mutant 6851 | -7/Factory | Discovered new exit (range 15) 6936 | -7/Factory | Identified exit to Factory 7256 | -7/Factory | Discovered new exit (range 7) 7285 | -7/Factory | Identified exit to Storage 7298 | -7/Factory | Entered Storage 7325 | -7/Storage | Met a pair of Derelict thieves 7420 | -7/Storage | Core integrity fell below 50% 7488 | -7/Storage | Destroyed 10 combat bots 7796 | -7/Storage | Build established: Scavenger-Mutant 7941 | -7/Storage | Used back door to open Recycling access 7941 | -7/Storage | Discovered new exit (range 5) 8153 | -7/Storage | Discovered exit to Factory (range 15) 8440 | -7/Storage | Lost 3 parts (3n) 8574 | -7/Storage | Destroyed 8 combat bots 8734 | -7/Storage | System corruption reached 10% 8811 | -7/Storage | Entered Recycling 8948 | -7/Recycling | Build established: Mutant 8967 | -7/Recycling | Discovered new exit (range 5) 8984 | -7/Recycling | Scanned before Scraplab entrance 9657 | -7/Recycling | Entered Scraplab 9669 | -7/Recycling | Discovered new exit (range 2) 9671 | -7/Recycling | Entered Scraptown 9938 | -7/Scraptown | Discovered new exit (range 11) 10049 | -7/Scraptown | Visited Fellowship of the Rings 10066 | -7/Scraptown | Visited Comm Corps 10135 | -7/Scraptown | Visited TADAMA 10193 | -7/Scraptown | Visited Cyclists 10250 | -7/Scraptown | Visited Assassins FH 10278 | -7/Scraptown | Visited UFD Registry 10278 | -7/Scraptown | Registered with UFD as "Boltspreader" 10303 | -7/Scraptown | Visited SPCMW 10338 | -7/Scraptown | Visited Shadow of the Wyrm 10410 | -7/Scraptown | Entered Cyclist Reading Room 10848 | -7/Scraptown | Visited Derelict Rescue Squad 10864 | -7/Scraptown | Found DRS Beacon 10919 | -7/Scraptown | Visited Junk Cannon Lab 10953 | -7/Scraptown | Visited Science Guys 11012 | -7/Scraptown | Visited Scrapoid Research Area 11040 | -7/Scraptown | Visited Sword Containment 11054 | -7/Scraptown | Visited Abandonware Association 11069 | -7/Scraptown | Learned abandonware demo "SHUTEYE.EXE" 11108 | -7/Scraptown | Visited Scrap Suit Storage 11132 | -7/Scraptown | Visited LU-1G1's Boring Crew 11502 | -7/Scraptown | Discovered new exit (range 5) 11710 | -7/Scraptown | Found Scrap Suit 12319 | -7/Scraptown | Met Optimus 12319 | -7/Scraptown | Accepted into 0bPrime 12415 | -7/Scraptown | Entered Factory 12415 | -5/Factory | Evolved 4 slots: Propulsion x1, Utility x3 12582 | -5/Factory | Identified exit to Factory 12630 | -5/Factory | Loaded intel: 8 recycling unit locations 12654 | -5/Factory | Learned location of Protoforge (-2) 12750 | -5/Factory | Garrison activated, responded to threat 12817 | -5/Factory | Identified exit to Garrison 12873 | -5/Factory | Entered Garrison 12891 | -5/Garrison | Triggered checkpoint 12892 | -5/Garrison | Build established: Hacker-Mutant 12943 | -5/Garrison | Garrison Relay disabled 13222 | -5/Garrison | Build established: Scavenger-Mutant 13303 | -5/Garrison | Triggered checkpoint 13329 | -5/Garrison | Triggered checkpoint 13337 | -5/Garrison | Core integrity fell below 50% 13377 | -5/Garrison | System corruption reached 10% 13382 | -5/Garrison | Destroyed 15 combat bots 13409 | -5/Garrison | Lost 8 parts (1p4n2u1w) 13554 | -5/Garrison | Discovered new exit (range 11) 13581 | -5/Garrison | Triggered checkpoint 13619 | -5/Garrison | Garrison Relay disabled 13685 | -5/Garrison | Triggered checkpoint 13874 | -5/Garrison | Discovered new exit (range 12) 13927 | -5/Garrison | Triggered checkpoint 14004 | -5/Garrison | Lost 7 parts (1p4n2u) 14101 | -5/Garrison | Garrison Relay disabled 14587 | -5/Garrison | Discovered new exit (range 10) 14595 | -5/Garrison | Triggered checkpoint 14659 | -5/Garrison | Triggered checkpoint 14667 | -5/Garrison | Core integrity fell below 20% 14695 | -5/Garrison | Garrison Relay disabled 14812 | -5/Garrison | Phase Generator disabled 14981 | -5/Garrison | Found Fusion Bomb Launcher 15077 | -5/Garrison | Triggered checkpoint 15186 | -5/Garrison | Installed Relay Interface Framework 15284 | -5/Garrison | Spotted B-75 Beast 15394 | -5/Garrison | Rescued a captive Derelict 15398 | -5/Garrison | Rescued a captive Derelict 15476 | -5/Garrison | Entered Factory 15476 | -5/Factory | Accompanied by 4 allies 15776 | -5/Factory | First assault squad dispatched 15797 | -5/Factory | Lost 4 allies 16024 | -5/Factory | Build established: Bothacker-Mutant 16087 | -5/Factory | Lost 3 parts (3u) 16373 | -5/Factory | Destroyed by Y-64 Sentinel with KE Penetrator Last Messages --------------- (-119). 16295_ System corrupted: Energy discharge (-91). 16308_ Sneak attack on R-10 Processor. 16308_ R-10 Processor destroyed. 16310_ System corrupted: Heat flow error (+250). 16311_ Acquired 114 matter. 16315_ Jacked M-28 Smith... >>start_evac Triggered evac routine. 16325_ System corrupted: Matter fused (-6). 16338_ Connecting with Terminal... 16353_ System corrupted: Component data lost. 16359_ Y-64 Sentinel suffers critical hit (Burn). 16362_ Soldier 6a destroyed. 16364_ Penetrated by Slug. 16368_ System corrupted: Component data lost. 16369_ Slug penetrates Wall. 16373_ Discarded Relay Coupler [NC]. 16373_ Penetrated by Slug. Map ----- +----------------------------------------------------+ | ? ???????????????????????????????????????????????? | | ?????????????????????????????????????????????????? | | ?????????????????????????=???????????????????????? | | ?!?????????? ????????????????????????????????????? | | ???????????? ?????????????????????????????????? | | ?+????##+### ???????????????????????????????? | | ??##### ?????????????????????????????? | | ? ?????????????????????????????? | | ? ????????????????????????????? | | ?? ????????????????????????????? | | # ???????????????????????????? | | ???????????????????????????? | | " ???????????????????????????? | | "% ??????????????????????????? | | """ " ??????????????????????????? | | """ h ???????????????????????????? | | ?# """ ""T??????????????????????????????? | | ?# """"" ???????????????????????????? | | ?# ###??????????????????????? | | ?# % u ??????????????????????? | | ?# ##+##############?# #??????????????????????? | | ?# # #???????# #????????????#?????????? | | ?# # #?????### ###??????? ????????? | | ?# # #######Y| #???? ?????????? | | ## # % ## ### ????????? | | + ## @ t """???????????? | | ## #### ## ### """???????????? | | ?# #??# ## ## ! ##???????????]???????? | | ?# #??# ## ####+;#;#???????????????????? | | ?# ############/## ## %* # #??????????????????? | | ##!##] # # + """ ###??????????????????? | | # [#= # # ## """ #????????????????????? | | =+%[""" # """=# ## """ ##???????????????????? | | # %#= """ # """*# ## ;#???????????????????? | | ## ## """ # """ +! + ##???????????????????? | | =# ## # ""!# ## ""#????????????????????? | | # #######"# "" + ## ""#????????????????????? | | #+#######"# ###### T"#????????????????????? | | [# ## #????# ""#????????????????????? | | " =## #????# ""#????????????????????? | | # ## ?????# #????????????????????? | | # #######?????#######????????????????????? | | ###########??????????????????????????????????????? | | | | | | | | | | | | | | | +----------------------------------------------------+ Best States ------------- Heat Dissipation 61 Energy Generation 19 Energy Capacity 315 Matter Stores 300 Matter Capacity 300 Sight Range 16 Robot Scan Range 15 Terrain Scan Range 16 Terrain Scan Density 110 ECM Strength 2 Jamming Range 14 Armor Coverage 450 Point Defense Rating 80 Weapon Cycling 15 Evasion (%) 70 Targeting Accuracy 8 Melee Accuracy 6 Recoil Reduction 4 Salvage Targeting 2 Offensive Hacking 30 Relay Coupler Types 2 Relay Coupler Value 28 Authchip Count 1 Item Schematics ----------------- Prc. Assault Rifle | -7/Factory | Scanalyzed Robot Schematics ------------------ None Fabricated ------------ Nothing Repaired ---------- Nothing Alien Tech Used ----------------- None Achievements -------------- None Challenges ------------ None Game ------ Seed GaussDiametricActivator Manual? 0 Play Time 02:56:52 Cumulative 193.8 hours Start 2025.05.14 @ 15:29:10 End 2025.05.14 @ 20:51:35 Sessions 1 Manual Loads 0 Difficulty Rogue Special Mode None Game No. 105 Rogue 97 Adventurer 8 Explorer 0 Win Type - Total 5 Types 2/0/2/1/0/0/0/0/0/0 Lore% 74 Gallery% 73 Achievement% 62 Wizard Run 0 Options --------- Layout 2 ASCII 0 Keyboard 1 Movement Numpad Keybinds 1 Fullscreen 1 Font 48/Smallcaps Map View 50x44 Zoom Use 0% Tactical HUD 1 Map Filters NONE Filters NONE Steam 1 RUN: d27a34f8-e78d-4bc1-91c9-a1765fddba1e